fUSD/lending_fUSD_20250322
["ID","MTS","AMOUNT","RATE_DAILY","PERIOD"]
[356547667,1742637117447,-664.62,0.00050958,120]
[356547668,1742637117457,-864.88,0.00050958,120]
[356547669,1742637117467,-870.55,0.00050958,120]
[356547670,1742637117477,-500.0,0.00050958,120]
[356547671,1742637117487,-3152.52,0.00050958,120]
[356547672,1742637117497,-1001.37,0.00050958,120]
[356547673,1742637117506,-1005.89,0.00050958,120]
[356547674,1742637117516,-500.0,0.00050962,120]
[356547675,1742637117525,-50000.0,0.00051,51]
[356547676,1742637117535,-151.28215343,0.00051,2]
[356547677,1742637117544,-44015.20767754,0.00051,120]
[356547678,1742637117570,-400.0,0.00051,120]
[356547679,1742637117581,-6071.89727007,0.00051,120]
[356547680,1742637304080,155.04501801,0.0003148,30]
[356547681,1742637849954,645.29492003,0.00031558,30]
[356547682,1742637891353,194.0,0.00031558,120]
[356547683,1742637931998,900.13381103,0.00031558,120]
[356547684,1742637964711,1265.0,0.00031558,90]
[356547685,1742637965241,1265.0,0.00031558,90]
[356547686,1742637965469,1268.0,0.00031558,90]
[356547687,1742637965857,1265.0,0.00031558,90]
[356547689,1742638142666,2300.8967606,0.00031558,60]
[356547695,1742638232327,-151.1,0.00026849,2]
[356547696,1742638232337,-150.0,0.00029534,2]
[356547697,1742638232347,-151.1,0.00037863,2]
[356547698,1742638232357,-303.16315862,0.00044018,2]
[356547699,1742638232380,-223.43684138,0.00044018,2]
[356547700,1742638232390,-297.78,0.0004424,2]
[356547701,1742638232401,-151.49,0.00045528,2]
[356547702,1742638232410,-137.74200674,0.00045792,5]
[356547703,1742638232422,-405.34744331,0.00045792,5]
[356547704,1742638232434,-6.91054995,0.00045792,5]
[356547705,1742638232444,-1814.41635571,0.00045793,2]
[356547706,1742638232542,-1593.29468835,0.00045793,2]
[356547707,1742638232554,-256.25013672,0.00045793,2]
[356547708,1742638232649,-553.5323311,0.00045793,2]
[356547709,1742638232663,-430.86617395,0.00045793,2]
[356547710,1742638232676,-802.73316858,0.00045793,2]
[356547716,1742638238272,-155.64,0.00026849,2]
[356547717,1742638238285,-257.305,0.00045793,2]
[356547718,1742638238297,-1740.04255694,0.00045793,2]
[356547719,1742638238325,-8978.20958865,0.00045793,2]
[356547720,1742638238335,-500.0,0.00045853,2]
[356547721,1742638238345,-154.42,0.000463,39]
[356547722,1742638238354,-973.8467,0.00046375,7]
[356547723,1742638238363,-223.4757,0.00046475,2]
[356547724,1742638238372,-2169.0743,0.00046475,2]
[356547725,1742638238381,-563.238,0.00046475,2]
[356547726,1742638238390,-297.78,0.00046504,2]
[356547727,1742638238400,-563.203,0.00046565,77]
[356547728,1742638238409,-172.39,0.00046565,10]
[356547729,1742638238419,-500.0,0.00046574,120]
[356547730,1742638238428,-500.0,0.00046575,120]
[356547731,1742638238437,-500.0,0.00046575,120]
[356547732,1742638238446,-330.97632968,0.00046575,120]
[356547733,1742638238455,-350.0,0.00046575,120]
[356547734,1742638238464,-393.42638167,0.00046575,120]
[356547735,1742638238475,-106.57361833,0.00046575,120]
[356547736,1742638238485,-358.59078385,0.00046575,120]
[356547737,1742638238500,-141.40921615,0.00046575,120]
[356547738,1742638238510,-500.0,0.00046575,120]
[356547739,1742638238520,-500.0,0.00046575,120]
[356547740,1742638238529,-500.0,0.00046575,120]
[356547741,1742638238539,-34.1306377,0.00046575,120]
[356547742,1742638238550,-465.8693623,0.00046575,120]
[356547743,1742638238560,-162.6056377,0.00046575,120]
[356547744,1742638238571,-337.3943623,0.00046575,120]
[356547745,1742638238581,-632.70040731,0.00046575,120]
[356547746,1742638238591,-500.0,0.00046575,120]
[356547748,1742638238600,-500.0,0.00046575,120]
[356547750,1742638238610,-386.61083556,0.00046575,120]
[356547752,1742638238622,-113.38916444,0.00046575,120]
[356547754,1742638238631,-500.0,0.00046575,120]
[356547756,1742638238641,-121.11034258,0.00046575,10]
[356547759,1742638238658,-255.20834431,0.00046575,10]
[356547827,1742638240424,-123.68131311,0.00046575,10]
[356547828,1742638240433,-461.54264355,0.00046575,120]
[356547829,1742638240445,-38.45735645,0.00046575,120]
[356547830,1742638240455,-500.0,0.00046575,120]
[356547831,1742638240464,-272.33249993,0.00046575,120]
[356547832,1742638240474,-284.81642582,0.00046575,120]
[356547833,1742638240485,-305.37357418,0.00046575,120]
[356547834,1742638240494,-500.0,0.00046575,120]
[356547835,1742638240504,-500.0,0.00046575,120]
[356547836,1742638240513,-164.31756452,0.00046575,120]
[356547837,1742638240524,-335.68243548,0.00046575,120]
[356547838,1742638240533,-353.44015414,0.00046575,120]
[356547839,1742638240543,-500.0,0.00046575,120]
[356547840,1742638240552,-500.0,0.00046575,120]
[356547841,1742638240562,-500.0,0.00046575,120]
[356547842,1742638240571,-507.04515798,0.00046575,120]
[356547843,1742638240581,-500.0,0.00046575,120]
[356547844,1742638240591,-500.0,0.00046575,120]
[356547845,1742638240600,-500.0,0.00046575,120]
[356547846,1742638240610,-500.0,0.00046575,120]
[356547847,1742638240619,-500.0,0.00046575,120]
[356547848,1742638240630,-500.0,0.00046575,120]
[356547849,1742638240640,-500.0,0.00046575,120]
[356547850,1742638240650,-500.0,0.00046575,120]
[356547851,1742638240660,-500.0,0.00046575,120]
[356547852,1742638240670,-452.77870127,0.00046575,120]
[356547853,1742638240682,-47.22129873,0.00046575,120]
[356547854,1742638240692,-500.0,0.00046575,120]
[356547855,1742638240702,-337.91815948,0.00046575,120]
[356547856,1742638240712,-535.91,0.00046575,120]
[356547857,1742638240722,-500.0,0.00046575,120]
[356547858,1742638240732,-500.0,0.00046575,120]
[356547859,1742638240743,-371.7364065,0.00046575,120]
[356547860,1742638240754,-500.0,0.00046575,120]
[356547861,1742638240764,-500.0,0.00046575,120]
[356547862,1742638240773,-640.97054834,0.00046575,120]
[356547863,1742638240783,-106.52812098,0.00046575,120]
[356547864,1742638240795,-393.47187902,0.00046575,120]
[356547865,1742638240805,-500.0,0.00046575,120]
[356547866,1742638240816,-500.0,0.00046575,120]
[356547867,1742638240826,-500.0,0.00046575,120]
[356547868,1742638240835,-500.0,0.00046575,120]
[356547869,1742638240845,-500.0,0.00046575,120]
[356547870,1742638240855,-500.0,0.00046575,120]
[356547871,1742638240864,-500.0,0.00046575,120]
[356547872,1742638240873,-106.17525095,0.00046575,120]
[356547873,1742638240886,-389.19649744,0.00046575,120]
[356547874,1742638240901,-4.62825161,0.00046575,120]
[356547875,1742638240911,-605.48993517,0.00046575,120]
[356547876,1742638240921,-500.0,0.00046575,120]
[356547877,1742638240935,-328.9526469,0.00046575,120]
[356547897,1742638243454,-171.0473531,0.00046575,120]
[356547899,1742638243463,-313.80139633,0.00046575,120]
[356547917,1742638243646,-186.19860367,0.00046575,120]
[356547919,1742638243656,-500.0,0.00046575,120]
[356547921,1742638243666,-81.2644618,0.00046575,120]
[356547923,1742638243677,-418.7355382,0.00046575,120]
[356547925,1742638243687,-500.0,0.00046575,120]
[356547927,1742638243696,-500.0,0.00046575,120]
[356547929,1742638243705,-500.0,0.00046575,120]
[356547931,1742638243715,-500.0,0.00046575,120]
[356547933,1742638243725,-628.66581286,0.00046575,120]
[356547935,1742638243734,-500.0,0.00046575,120]
[356547937,1742638243743,-500.0,0.00046575,120]
[356547939,1742638243752,-500.0,0.00046575,120]
[356547941,1742638243763,-500.0,0.00046575,120]
[356547943,1742638243772,-500.0,0.00046575,120]
[356547945,1742638243781,-500.0,0.00046575,7]
[356547947,1742638243791,-500.0,0.00046575,120]
[356547949,1742638243800,-500.0,0.00046575,120]
[356547951,1742638243809,-500.0,0.00046575,120]
[356547953,1742638243818,-500.0,0.00046575,120]
[356547955,1742638243827,-500.0,0.00046575,120]
[356547957,1742638243836,-500.0,0.00046575,120]
[356547959,1742638243846,-500.0,0.00046575,120]
[356547961,1742638243855,-500.0,0.00046575,120]
[356547963,1742638243864,-500.0,0.00046575,120]
[356547965,1742638243873,-397.55899461,0.00046575,120]
[356547966,1742638243883,-162.77530537,0.00046575,120]
[356547967,1742638243892,-500.0,0.00046575,120]
[356547968,1742638243902,-500.0,0.00046575,120]
[356547969,1742638243911,-500.0,0.00046575,120]
[356547970,1742638243921,-335.59712753,0.00046575,120]
[356547971,1742638243932,-500.0,0.00046575,120]
[356547972,1742638243942,-500.0,0.00046575,120]
[356547973,1742638243952,-500.0,0.00046575,120]
[356547974,1742638243962,-500.0,0.00046575,120]
[356547975,1742638243972,-500.0,0.00046575,120]
[356547976,1742638243980,-500.0,0.00046575,120]
[356547977,1742638243989,-500.0,0.00046575,120]
[356547978,1742638243998,-500.0,0.00046575,120]
[356547979,1742638244010,-500.0,0.00046575,120]
[356547980,1742638244019,-500.0,0.00046575,120]
[356547981,1742638244030,-500.0,0.00046575,120]
[356547982,1742638244038,-500.0,0.00046575,120]
[356547983,1742638244047,-527.26,0.00046575,120]
[356547984,1742638244057,-500.0,0.00046575,120]
[356547985,1742638244066,-500.0,0.00046575,120]
[356547986,1742638244075,-500.0,0.00046575,120]
[356547987,1742638244084,-500.0,0.00046575,120]
[356547988,1742638244093,-500.0,0.00046575,120]
[356547989,1742638244104,-500.0,0.00046575,120]
[356547990,1742638244112,-500.0,0.00046575,120]
[356547991,1742638244121,-854.86,0.00046575,120]
[356547992,1742638244131,-544.56,0.00046575,120]
[356547993,1742638244140,-500.0,0.00046575,120]
[356547994,1742638244149,-500.0,0.00046575,120]
[356547995,1742638244158,-500.0,0.00046575,120]
[356547996,1742638244167,-500.0,0.00046575,120]
[356547997,1742638244176,-500.0,0.00046575,120]
[356547998,1742638244187,-150.0,0.000466,2]
[356547999,1742638244196,-2018.53,0.00046748,2]
[356548000,1742638244205,-5708.49004045,0.00046748,15]
[356548001,1742638244214,-1340.4843,0.00046749,2]
[356548002,1742638244223,-1231.5746,0.00046749,2]
[356548003,1742638244233,-5000.0,0.00046749,120]
[356548004,1742638244242,-500.0,0.00046847,120]
[356548005,1742638244252,-205.90769197,0.00046847,120]
[356548006,1742638244261,-188.19043989,0.00046847,120]
[356548007,1742638244270,-500.0,0.00046847,120]
[356548008,1742638244279,-350.03422056,0.00046847,120]
[356548009,1742638244289,-500.0,0.00046847,120]
[356548010,1742638244298,-500.0,0.00046847,120]
[356548011,1742638244307,-500.0,0.00046847,120]
[356548012,1742638244316,-500.0,0.00046847,120]
[356548013,1742638244325,-500.0,0.00046847,120]
[356548014,1742638244334,-500.0,0.00046847,120]
[356548015,1742638244343,-500.0,0.00046847,120]
[356548016,1742638244353,-529.24,0.00046847,120]
[356548017,1742638244362,-500.0,0.00046847,120]
[356548018,1742638244371,-500.0,0.00046847,120]
[356548019,1742638244381,-500.0,0.00046847,120]
[356548020,1742638244390,-500.0,0.00046847,120]
[356548021,1742638244400,-500.0,0.00046847,120]
[356548022,1742638244409,-500.0,0.00046847,120]
[356548023,1742638244418,-500.0,0.00046847,120]
[356548024,1742638244428,-500.0,0.00046847,120]
[356548025,1742638244439,-500.0,0.00046847,120]
[356548026,1742638244449,-500.0,0.00046847,120]
[356548027,1742638244459,-500.0,0.00046847,120]
[356548028,1742638244468,-500.0,0.00046847,120]
[356548029,1742638244478,-500.0,0.00046847,120]
[356548030,1742638244488,-500.0,0.00046847,120]
[356548031,1742638244497,-919.49,0.00046847,120]
[356548032,1742638244507,-553.63,0.00046847,120]
[356548033,1742638244517,-605.4,0.00046847,120]
[356548034,1742638244526,-500.0,0.00046847,120]
[356548035,1742638244536,-500.0,0.00046847,120]
[356548036,1742638244546,-500.0,0.00046847,120]
[356548037,1742638244555,-500.0,0.00046847,120]
[356548038,1742638244564,-570.768059,0.00046847,120]
[356548039,1742638244574,-159.505277,0.00046847,120]
[356548040,1742638244583,-500.0,0.00046847,120]
[356548041,1742638244593,-500.0,0.00046847,120]
[356548042,1742638244602,-500.0,0.00046847,120]
[356548043,1742638244612,-500.0,0.00046847,120]
[356548044,1742638244621,-150.0,0.00046848,120]
[356548045,1742638244631,-500.0,0.00046848,120]
[356548046,1742638244641,-206.2621448,0.00046848,120]
[356548047,1742638244651,-500.0,0.00046848,120]
[356548048,1742638244660,-500.0,0.00046848,120]
[356548049,1742638244670,-500.0,0.00046848,120]
[356548050,1742638244680,-500.0,0.00046848,120]
[356548051,1742638244689,-500.0,0.00046848,120]
[356548052,1742638244699,-500.0,0.00046848,120]
[356548053,1742638244708,-500.0,0.00046848,120]
[356548054,1742638244718,-319.29516315,0.00046848,120]
[356548055,1742638244727,-503.53,0.00046848,120]
[356548056,1742638244736,-500.0,0.00046848,120]
[356548057,1742638244746,-500.0,0.00046848,120]
[356548058,1742638244756,-500.0,0.00046848,120]
[356548059,1742638244766,-504.54046854,0.00046848,120]
[356548060,1742638244775,-500.0,0.00046848,120]
[356548061,1742638244784,-637.82637322,0.00046848,120]
[356548062,1742638244793,-500.0,0.00046848,120]
[356548063,1742638244802,-500.0,0.00046848,120]
[356548064,1742638244811,-424.27463307,0.00046848,120]
[356548065,1742638244820,-503.66580176,0.00046848,120]
[356548066,1742638244830,-500.0,0.00046848,120]
[356548067,1742638244839,-644.71,0.00046848,120]
[356548068,1742638244849,-604.36,0.00046848,120]
[356548069,1742638244859,-288.24926061,0.00046848,120]
[356548070,1742638244869,-500.0,0.00046848,120]
[356548071,1742638244878,-500.0,0.00046848,120]
[356548072,1742638244887,-500.0,0.00046848,120]
[356548073,1742638244896,-500.0,0.00046848,120]
[356548074,1742638244906,-500.0,0.00046848,120]
[356548075,1742638244915,-500.0,0.00046848,120]
[356548076,1742638244924,-500.0,0.00046848,120]
[356548077,1742638244937,-500.0,0.00046848,120]
[356548078,1742638244947,-500.0,0.00046848,120]
[356548079,1742638244957,-200.0,0.00046848,7]
[356548080,1742638244967,-500.0,0.00046848,120]
[356548081,1742638244977,-500.0,0.00046848,120]
[356548082,1742638244987,-500.0,0.00046848,120]
[356548083,1742638244996,-500.0,0.00046848,120]
[356548084,1742638245007,-500.0,0.00046848,120]
[356548085,1742638245016,-500.0,0.00046848,120]
[356548086,1742638245025,-500.0,0.00046848,120]
[356548087,1742638245034,-500.0,0.00046848,120]
[356548088,1742638245043,-500.0,0.00046848,120]
[356548089,1742638245053,-500.0,0.00046848,120]
[356548090,1742638245063,-500.0,0.00046848,120]
[356548091,1742638245071,-500.0,0.00046848,120]
[356548092,1742638245080,-500.0,0.00046848,120]
[356548093,1742638245089,-500.0,0.00046848,120]
[356548094,1742638245099,-500.0,0.00046848,120]
[356548095,1742638245108,-500.0,0.00046848,120]
[356548096,1742638245117,-500.0,0.00046848,120]
[356548097,1742638245126,-500.0,0.00046848,120]
[356548098,1742638245136,-703.722445,0.00046848,120]
[356548099,1742638245145,-500.0,0.00046848,120]
[356548100,1742638245154,-500.0,0.00046848,120]
[356548101,1742638245163,-500.0,0.00046848,120]
[356548102,1742638245172,-500.0,0.00046848,120]
[356548103,1742638245182,-500.0,0.00046848,120]
[356548104,1742638245191,-500.0,0.00046848,120]
[356548105,1742638245199,-500.0,0.00046848,120]
[356548106,1742638245209,-500.0,0.00046848,120]
[356548107,1742638245218,-500.0,0.00046848,120]
[356548108,1742638245227,-500.0,0.00046848,120]
[356548109,1742638245236,-500.0,0.00046848,120]
[356548110,1742638245246,-500.0,0.00046848,120]
[356548111,1742638245255,-500.0,0.00046848,120]
[356548112,1742638245265,-500.0,0.00046848,120]
[356548113,1742638245274,-500.0,0.00046848,120]
[356548114,1742638245284,-500.0,0.00046848,120]
[356548115,1742638245293,-500.0,0.00046848,120]
[356548116,1742638245303,-500.0,0.00046848,120]
[356548117,1742638245312,-500.0,0.00046848,120]
[356548118,1742638245322,-500.0,0.00046848,120]
[356548119,1742638245332,-500.0,0.00046848,120]
[356548120,1742638245341,-500.0,0.00046848,120]
[356548121,1742638245351,-500.0,0.00046848,120]
[356548122,1742638245360,-500.0,0.00046848,120]
[356548123,1742638245369,-500.0,0.00046848,120]
[356548124,1742638245378,-500.0,0.00046848,120]
[356548125,1742638245387,-500.0,0.00046848,120]
[356548126,1742638245397,-500.0,0.00046848,120]
[356548127,1742638245407,-500.0,0.00046848,120]
[356548128,1742638245416,-500.0,0.00046848,120]
[356548129,1742638245425,-500.0,0.00046848,120]
[356548130,1742638245435,-500.0,0.00046848,120]
[356548131,1742638245444,-500.0,0.00046848,120]
[356548132,1742638245454,-500.0,0.00046848,120]
[356548133,1742638245463,-500.0,0.00046848,120]
[356548134,1742638245473,-500.0,0.00046848,120]
[356548135,1742638245482,-500.0,0.00046848,120]
[356548136,1742638245491,-354.2792401,0.00046848,120]
[356548137,1742638245501,-500.0,0.00046848,120]
[356548138,1742638245511,-500.0,0.00046848,120]
[356548139,1742638245520,-500.0,0.00046848,120]
[356548140,1742638245530,-500.0,0.00046848,120]
[356548141,1742638245540,-500.0,0.00046848,120]
[356548142,1742638245549,-500.0,0.00046848,120]
[356548143,1742638245566,-500.0,0.00046848,120]
[356548144,1742638245575,-500.0,0.00046848,120]
[356548145,1742638245584,-500.0,0.00046848,120]
[356548146,1742638245594,-500.0,0.00046848,120]
[356548147,1742638245604,-500.0,0.00046848,120]
[356548148,1742638245614,-500.0,0.00046848,120]
[356548149,1742638245623,-500.0,0.00046848,120]
[356548150,1742638245632,-500.0,0.00046848,120]
[356548151,1742638245642,-500.0,0.00046848,120]
[356548152,1742638245652,-500.0,0.00046848,120]
[356548153,1742638245661,-500.0,0.00046848,120]
[356548154,1742638245670,-500.0,0.00046848,120]
[356548155,1742638245680,-505.43,0.00046848,120]
[356548156,1742638245690,-500.0,0.00046848,120]
[356548157,1742638245699,-500.0,0.00046848,120]
[356548158,1742638245708,-500.0,0.00046848,120]
[356548159,1742638245717,-500.0,0.00046848,120]
[356548160,1742638245727,-500.0,0.00046848,120]
[356548161,1742638245736,-500.0,0.00046848,120]
[356548162,1742638245745,-532.09,0.00046848,120]
[356548163,1742638245755,-500.0,0.00046848,120]
[356548164,1742638245764,-673.11,0.00046848,120]
[356548165,1742638245773,-252.78859537,0.00046848,120]
[356548166,1742638245782,-500.0,0.00046848,120]
[356548167,1742638245792,-500.0,0.00046848,120]
[356548168,1742638245801,-1235.47,0.00046848,2]
[356548169,1742638245810,-500.0,0.00046848,60]
[356548170,1742638245819,-802.29,0.00046848,120]
[356548171,1742638245829,-179.90744389,0.00046848,120]
[356548172,1742638245839,-500.0,0.00046848,120]
[356548173,1742638245848,-506.8549614,0.00046848,120]
[356548174,1742638245857,-246.57787258,0.00046848,120]
[356548175,1742638245866,-500.0,0.00046848,120]
[356548176,1742638245875,-500.0,0.00046848,120]
[356548177,1742638245884,-500.0,0.00046848,120]
[356548178,1742638245893,-506.57,0.00046848,120]
[356548179,1742638245902,-500.0,0.00046848,120]
[356548180,1742638245911,-694.68,0.00046848,120]
[356548181,1742638245921,-500.0,0.00046848,120]
[356548182,1742638245933,-500.0,0.00046848,120]
[356548183,1742638245943,-500.0,0.00046848,120]
[356548184,1742638245955,-984.42,0.00046848,120]
[356548185,1742638245964,-500.0,0.00046848,120]
[356548186,1742638245973,-500.0,0.00046848,120]
[356548187,1742638245983,-500.0,0.00046848,120]
[356548188,1742638245992,-500.0,0.00046848,120]
[356548189,1742638246001,-500.0,0.00046848,120]
[356548190,1742638246010,-981.57,0.00046848,120]
[356548191,1742638246021,-500.0,0.00046848,120]
[356548192,1742638246032,-500.0,0.00046848,120]
[356548193,1742638246041,-500.0,0.00046848,120]
[356548194,1742638246052,-500.0,0.00046848,120]
[356548195,1742638246061,-500.0,0.00046848,120]
[356548196,1742638246070,-500.0,0.00046848,120]
[356548197,1742638246079,-500.0,0.00046848,120]
[356548198,1742638246088,-500.0,0.00046848,120]
[356548199,1742638246100,-1475.95,0.00046848,120]
[356548200,1742638246109,-500.0,0.00046848,7]
[356548201,1742638246118,-500.0,0.00046848,120]
[356548203,1742638246127,-657.16,0.00046848,120]
[356548205,1742638246136,-584.48,0.00046848,100]
[356548206,1742638246145,-500.0,0.00046848,120]
[356548207,1742638246155,-500.0,0.00046848,120]
[356548208,1742638246165,-500.0,0.00046848,120]
[356548209,1742638246175,-990.54,0.00046848,120]
[356548210,1742638246186,-500.0,0.00046848,120]
[356548211,1742638246195,-500.0,0.00046848,120]
[356548212,1742638246205,-500.0,0.00046848,120]
[356548213,1742638246215,-500.0,0.00046848,120]
[356548214,1742638246224,-558.3,0.00046848,120]
[356548216,1742638246233,-500.0,0.00046848,120]
[356548217,1742638246242,-954.86,0.00046848,120]
[356548218,1742638246250,-500.0,0.00046848,120]
[356548219,1742638246259,-541.75,0.00046848,120]
[356548220,1742638246268,-500.0,0.00046848,120]
[356548221,1742638246277,-500.0,0.00046848,120]
[356548222,1742638246286,-500.0,0.00046848,120]
[356548223,1742638246295,-500.0,0.00046848,120]
[356548224,1742638246304,-500.0,0.00046848,120]
[356548225,1742638246313,-500.0,0.00046848,120]
[356548226,1742638246323,-500.0,0.00046848,120]
[356548227,1742638246331,-500.0,0.00046848,120]
[356548228,1742638246340,-500.0,0.00046848,120]
[356548229,1742638246349,-725.48,0.00046848,120]
[356548230,1742638246358,-500.0,0.00046848,120]
[356548231,1742638246367,-500.0,0.00046848,120]
[356548232,1742638246376,-500.0,0.00046848,120]
[356548233,1742638246385,-500.0,0.00046848,120]
[356548234,1742638246394,-596.31,0.00046848,2]
[356548235,1742638246403,-500.0,0.00046848,120]
[356548236,1742638246413,-500.0,0.00046848,120]
[356548237,1742638246422,-500.0,0.00046848,120]
[356548238,1742638246431,-500.0,0.00046848,120]
[356548239,1742638246439,-500.0,0.00046848,120]
[356548240,1742638246449,-500.0,0.00046848,120]
[356548241,1742638246458,-1222.83,0.00046848,120]
[356548242,1742638246467,-500.0,0.00046848,120]
[356548243,1742638246476,-500.0,0.00046848,120]
[356548244,1742638246485,-500.0,0.00046848,120]
[356548245,1742638246495,-560.12,0.00046848,120]
[356548246,1742638246503,-500.0,0.00046848,120]
[356548247,1742638246512,-500.0,0.00046848,120]
[356548248,1742638246521,-500.0,0.00046848,120]
[356548249,1742638246530,-621.55,0.00046848,120]
[356548250,1742638246539,-500.0,0.00046848,120]
[356548251,1742638246548,-500.0,0.00046848,120]
[356548252,1742638246558,-500.0,0.00046848,120]
[356548253,1742638246567,-500.0,0.00046848,120]
[356548254,1742638246576,-500.0,0.00046848,120]
[356548255,1742638246585,-500.0,0.00046848,120]
[356548256,1742638246594,-500.0,0.00046848,120]
[356548257,1742638246603,-500.0,0.00046848,120]
[356548258,1742638246612,-500.0,0.00046848,120]
[356548259,1742638246621,-500.0,0.00046848,120]
[356548260,1742638246630,-500.0,0.00046848,120]
[356548261,1742638246639,-500.0,0.00046848,120]
[356548262,1742638246648,-500.0,0.00046848,120]
[356548263,1742638246657,-500.0,0.00046848,120]
[356548264,1742638246666,-500.0,0.00046848,120]
[356548265,1742638246675,-500.0,0.00046848,120]
[356548266,1742638246686,-500.0,0.00046848,120]
[356548267,1742638246694,-552.49,0.00046848,120]
[356548268,1742638246703,-500.0,0.00046848,120]
[356548269,1742638246713,-500.0,0.00046848,120]
[356548270,1742638246724,-500.0,0.00046848,120]
[356548271,1742638246733,-500.0,0.00046848,120]
[356548272,1742638246742,-500.0,0.00046848,120]
[356548273,1742638246751,-500.0,0.00046848,120]
[356548274,1742638246760,-500.0,0.00046848,120]
[356548275,1742638246770,-822.12,0.00046848,120]
[356548276,1742638246779,-500.0,0.00046849,120]
[356548277,1742638246789,-350.0,0.00046849,120]
[356548278,1742638246798,-500.0,0.00046849,120]
[356548279,1742638246807,-500.0,0.00046849,120]
[356548280,1742638246816,-500.0,0.00046849,120]
[356548281,1742638246825,-500.0,0.00046849,120]
[356548282,1742638246834,-500.0,0.00046849,120]
[356548283,1742638246843,-500.0,0.00046849,120]
[356548284,1742638246852,-500.0,0.00046849,120]
[356548285,1742638246861,-500.0,0.00046849,120]
[356548286,1742638246870,-500.0,0.00046849,120]
[356548287,1742638246879,-416.04092483,0.00046849,120]
[356548288,1742638246889,-500.0,0.00046849,120]
[356548289,1742638246898,-500.0,0.00046849,10]
[356548290,1742638246907,-500.0,0.00046849,120]
[356548291,1742638246917,-500.0,0.00046849,120]
[356548292,1742638246928,-590.19,0.00046849,120]
[356548293,1742638246940,-500.0,0.00046849,120]
[356548294,1742638246949,-500.0,0.00046849,120]
[356548295,1742638246958,-500.0,0.00046849,120]
[356548296,1742638246971,-500.0,0.00046849,120]
[356548297,1742638246980,-500.0,0.00046849,120]
[356548298,1742638246990,-500.0,0.00046849,120]
[356548299,1742638246999,-290.2477967,0.00046849,120]
[356548300,1742638247009,-500.0,0.00046849,120]
[356548301,1742638247018,-500.0,0.00046849,120]
[356548302,1742638247027,-500.0,0.00046849,120]
[356548303,1742638247036,-500.0,0.00046849,120]
[356548304,1742638247045,-500.0,0.00046849,120]
[356548305,1742638247054,-500.0,0.00046849,120]
[356548306,1742638247063,-215.4994054,0.00046849,120]
[356548307,1742638247073,-500.0,0.00046849,120]
[356548308,1742638247082,-500.0,0.00046849,120]
[356548309,1742638247091,-535.91,0.00046849,120]
[356548310,1742638247102,-500.0,0.00046849,120]
[356548311,1742638247114,-500.0,0.00046849,120]
[356548312,1742638247124,-500.0,0.00046849,120]
[356548313,1742638247133,-500.0,0.00046849,120]
[356548314,1742638247144,-500.0,0.00046849,120]
[356548315,1742638247154,-500.0,0.00046849,120]